Workbook

Sheet لوحة المعلومات
N1: =" الميزانية التفاعلية "&"ل"&اسمالميزانية -> الميزانية التفاعلية لعائلة زكي 2012
A3: ='بيانات المخطط'!C38 -> 4000 ر.س.‏
D5: الدخل
A7: ='بيانات المخطط'!C39 -> 5933 ر.س.‏
D9: المصاريف
A11: ='بيانات المخطط'!D40 &'بيانات المخطط'!C40 & " ر.س." -> -1933 ر.س.
D13: التدفق النقدي

Sheet الميزانية
C1: يناير | D1: فبراير | E1: مارس | F1: أبريل | G1: مايو | H1: يونيو | I1: يوليو | J1: أغسطس | K1: سبتمبر | L1: أكتوبر | M1: نوفمبر | N1: ديسمبر | O1: السنة | P1: المتوسط
B5: الميزانية الأولية | C5: 1000
B6: الدخل الإجمالي | C6: =SUM(tblالدخل[يناير]) -> 4222 | D6: =SUM(tblالدخل[فبراير]) -> 9033 | E6: =SUM(tblالدخل[مارس]) -> 4000 | F6: =SUM(tblالدخل[أبريل]) -> 4045 | G6: =SUM(tblالدخل[مايو]) -> 9000 | H6: =SUM(tblالدخل[يونيو]) -> 1525 | I6: =SUM(tblالدخل[يوليو]) -> 1500 | J6: =SUM(tblالدخل[أغسطس]) -> 6500 | K6: =SUM(tblالدخل[سبتمبر]) -> 4000 | L6: =SUM(tblالدخل[أكتوبر]) -> 4000 | M6: =SUM(tblالدخل[نوفمبر]) -> 9000 | N6: =SUM(tblالدخل[ديسمبر]) -> 4000 | O6: =SUM(tblالدخل[سنة]) -> 60825 | P6: =O6/12 -> 5069
B7: المصاريف الإجمالية | C7: =SUM(tblنفقةفئة1[يناير],tblنفقةفئة2[يناير],tblنفقةفئة3[يناير],tblنفقةفئة4[يناير],tblنفقةفئة5[يناير],tblنفقةفئة6[يناير],tblنفقةفئة7[يناير],tblنفقةفئة8[يناير],tblنفقةفئة9[يناير],tblنفقةفئة10[يناير],tblنفقةفئة11[يناير],tblنفقةفئة12[يناير],tblنفقةفئة13[يناير],tblنفقةفئة14[يناير],tblنفقةفئة15[يناير]) -> 7936 | D7: =SUM(tblنفقةفئة1[فبراير],tblنفقةفئة2[فبراير],tblنفقةفئة3[فبراير],tblنفقةفئة4[فبراير],tblنفقةفئة5[فبراير],tblنفقةفئة6[فبراير],tblنفقةفئة7[فبراير],tblنفقةفئة8[فبراير],tblنفقةفئة9[فبراير],tblنفقةفئة10[فبراير],tblنفقةفئة11[فبراير],tblنفقةفئة12[فبراير],tblنفقةفئة13[فبراير],tblنفقةفئة14[فبراير],tblنفقةفئة15[فبراير]) -> 5243 | E7: =SUM(tblنفقةفئة1[مارس],tblنفقةفئة2[مارس],tblنفقةفئة3[مارس],tblنفقةفئة4[مارس],tblنفقةفئة5[مارس],tblنفقةفئة6[مارس],tblنفقةفئة7[مارس],tblنفقةفئة8[مارس],tblنفقةفئة9[مارس],tblنفقةفئة10[مارس],tblنفقةفئة11[مارس],tblنفقةفئة12[مارس],tblنفقةفئة13[مارس],tblنفقةفئة14[مارس],tblنفقةفئة15[مارس]) -> 5933 | F7: =SUM(tblنفقةفئة1[أبريل],tblنفقةفئة2[أبريل],tblنفقةفئة3[أبريل],tblنفقةفئة4[أبريل],tblنفقةفئة5[أبريل],tblنفقةفئة6[أبريل],tblنفقةفئة7[أبريل],tblنفقةفئة8[أبريل],tblنفقةفئة9[أبريل],tblنفقةفئة10[أبريل],tblنفقةفئة11[أبريل],tblنفقةفئة12[أبريل],tblنفقةفئة13[أبريل],tblنفقةفئة14[أبريل],tblنفقةفئة15[أبريل]) -> 5858 | G7: =SUM(tblنفقةفئة1[مايو],tblنفقةفئة2[مايو],tblنفقةفئة3[مايو],tblنفقةفئة4[مايو],tblنفقةفئة5[مايو],tblنفقةفئة6[مايو],tblنفقةفئة7[مايو],tblنفقةفئة8[مايو],tblنفقةفئة9[مايو],tblنفقةفئة10[مايو],tblنفقةفئة11[مايو],tblنفقةفئة12[مايو],tblنفقةفئة13[مايو],tblنفقةفئة14[مايو],tblنفقةفئة15[مايو]) -> 5468 | H7: =SUM(tblنفقةفئة1[يونيو],tblنفقةفئة2[يونيو],tblنفقةفئة3[يونيو],tblنفقةفئة4[يونيو],tblنفقةفئة5[يونيو],tblنفقةفئة6[يونيو],tblنفقةفئة7[يونيو],tblنفقةفئة8[يونيو],tblنفقةفئة9[يونيو],tblنفقةفئة10[يونيو],tblنفقةفئة11[يونيو],tblنفقةفئة12[يونيو],tblنفقةفئة13[يونيو],tblنفقةفئة14[يونيو],tblنفقةفئة15[يونيو]) -> 5118 | I7: =SUM(tblنفقةفئة1[يوليو],tblنفقةفئة2[يوليو],tblنفقةفئة3[يوليو],tblنفقةفئة4[يوليو],tblنفقةفئة5[يوليو],tblنفقةفئة6[يوليو],tblنفقةفئة7[يوليو],tblنفقةفئة8[يوليو],tblنفقةفئة9[يوليو],tblنفقةفئة10[يوليو],tblنفقةفئة11[يوليو],tblنفقةفئة12[يوليو],tblنفقةفئة13[يوليو],tblنفقةفئة14[يوليو],tblنفقةفئة15[يوليو]) -> 5743 | J7: =SUM(tblنفقةفئة1[أغسطس],tblنفقةفئة2[أغسطس],tblنفقةفئة3[أغسطس],tblنفقةفئة4[أغسطس],tblنفقةفئة5[أغسطس],tblنفقةفئة6[أغسطس],tblنفقةفئة7[أغسطس],tblنفقةفئة8[أغسطس],tblنفقةفئة9[أغسطس],tblنفقةفئة10[أغسطس],tblنفقةفئة11[أغسطس],tblنفقةفئة12[أغسطس],tblنفقةفئة13[أغسطس],tblنفقةفئة14[أغسطس],tblنفقةفئة15[أغسطس]) -> 5353 | K7: =SUM(tblنفقةفئة1[سبتمبر],tblنفقةفئة2[سبتمبر],tblنفقةفئة3[سبتمبر],tblنفقةفئة4[سبتمبر],tblنفقةفئة5[سبتمبر],tblنفقةفئة6[سبتمبر],tblنفقةفئة7[سبتمبر],tblنفقةفئة8[سبتمبر],tblنفقةفئة9[سبتمبر],tblنفقةفئة10[سبتمبر],tblنفقةفئة11[سبتمبر],tblنفقةفئة12[سبتمبر],tblنفقةفئة13[سبتمبر],tblنفقةفئة14[سبتمبر],tblنفقةفئة15[سبتمبر]) -> 5983 | L7: =SUM(tblنفقةفئة1[أكتوبر],tblنفقةفئة2[أكتوبر],tblنفقةفئة3[أكتوبر],tblنفقةفئة4[أكتوبر],tblنفقةفئة5[أكتوبر],tblنفقةفئة6[أكتوبر],tblنفقةفئة7[أكتوبر],tblنفقةفئة8[أكتوبر],tblنفقةفئة9[أكتوبر],tblنفقةفئة10[أكتوبر],tblنفقةفئة11[أكتوبر],tblنفقةفئة12[أكتوبر],tblنفقةفئة13[أكتوبر],tblنفقةفئة14[أكتوبر],tblنفقةفئة15[أكتوبر]) -> 5943 | M7: =SUM(tblنفقةفئة1[نوفمبر],tblنفقةفئة2[نوفمبر],tblنفقةفئة3[نوفمبر],tblنفقةفئة4[نوفمبر],tblنفقةفئة5[نوفمبر],tblنفقةفئة6[نوفمبر],tblنفقةفئة7[نوفمبر],tblنفقةفئة8[نوفمبر],tblنفقةفئة9[نوفمبر],tblنفقةفئة10[نوفمبر],tblنفقةفئة11[نوفمبر],tblنفقةفئة12[نوفمبر],tblنفقةفئة13[نوفمبر],tblنفقةفئة14[نوفمبر],tblنفقةفئة15[نوفمبر]) -> 5058 | N7: =SUM(tblنفقةفئة1[ديسمبر],tblنفقةفئة2[ديسمبر],tblنفقةفئة3[ديسمبر],tblنفقةفئة4[ديسمبر],tblنفقةفئة5[ديسمبر],tblنفقةفئة6[ديسمبر],tblنفقةفئة7[ديسمبر],tblنفقةفئة8[ديسمبر],tblنفقةفئة9[ديسمبر],tblنفقةفئة10[ديسمبر],tblنفقةفئة11[ديسمبر],tblنفقةفئة12[ديسمبر],tblنفقةفئة13[ديسمبر],tblنفقةفئة14[ديسمبر],tblنفقةفئة15[ديسمبر]) -> 4958 | O7: =SUM(tblنفقةفئة1[سنة],tblنفقةفئة2[سنة],tblنفقةفئة3[سنة],tblنفقةفئة4[سنة],tblنفقةفئة5[سنة],tblنفقةفئة6[سنة],tblنفقةفئة7[سنة],tblنفقةفئة8[سنة],tblنفقةفئة9[سنة],tblنفقةفئة10[سنة],tblنفقةفئة11[سنة],tblنفقةفئة12[سنة],tblنفقةفئة13[سنة],tblنفقةفئة14[سنة],tblنفقةفئة15[سنة]) -> 68594 | P7: =O7/12 -> 5716
B8: صافي الدخل | C8: =C6-C7 -> -3714 | D8: =D6-D7 -> 3790 | E8: -1933 | F8: -1813 | G8: 3532 | H8: -3593 | I8: -4243 | J8: 1147 | K8: -1983 | L8: -1943 | M8: 3942 | N8: -958 | O8: -7769 | P8: =O8/12 -> -647
B9: الإجمالي التدفق النقدي | C9: =C5+C6-C7 -> -2714 | D9: =C9+D6-D7 -> 1076 | E9: =D9+E6-E7 -> -857 | F9: -2670 | G9: 862 | H9: -2731 | I9: -6974 | J9: -5827 | K9: -7810 | L9: -9753 | M9: -5811 | N9: -6769
B12: الدخل
B13: الأجور والبقشيش | C13: 4000 | D13: 4000 | E13: 4000 | F13: 4000 | G13: 4000 | H13: 1000 | I13: 1000 | J13: 1000 | K13: 4000 | L13: 4000 | M13: 4000 | N13: 4000 | O13: =SUM(tblالدخل[[#This Row],[يناير]:[ديسمبر]]) -> 39000 | P13: =tblالدخل[[#This Row],[سنة]]/12 -> 3250
B14: الدخل من الفوائد | C14: 222 | D14: 33 | F14: 45 | H14: 25 | O14: =SUM(tblالدخل[[#This Row],[يناير]:[ديسمبر]]) -> 325 | P14: =tblالدخل[[#This Row],[سنة]]/12 -> 27
B15: الأرباح | D15: 5000 | G15: 5000 | J15: 5000 | M15: 5000 | O15: =SUM(tblالدخل[[#This Row],[يناير]:[ديسمبر]]) -> 20000 | P15: =tblالدخل[[#This Row],[سنة]]/12 -> 1667
B16: المبالغ المستردة/التعويضات | H16: 500 | I16: 500 | J16: 500 | O16: =SUM(tblالدخل[[#This Row],[يناير]:[ديسمبر]]) -> 1500 | P16: =tblالدخل[[#This Row],[سنة]]/12 -> 125
B17: غير ذلك | O17: =SUM(tblالدخل[[#This Row],[يناير]:[ديسمبر]]) -> 0 | P17: =tblالدخل[[#This Row],[سنة]]/12 -> 0
B18: =UPPER("الإجمالي " & B12) -> الإجمالي الدخل | C18: =SUM(tblالدخل[يناير]) -> 4222 | D18: =SUM(tblالدخل[فبراير]) -> 9033 | E18: =SUM(tblالدخل[مارس]) -> 4000 | F18: =SUM(tblالدخل[أبريل]) -> 4045 | G18: =SUM(tblالدخل[مايو]) -> 9000 | H18: =SUM(tblالدخل[يونيو]) -> 1525 | I18: =SUM(tblالدخل[يوليو]) -> 1500 | J18: =SUM(tblالدخل[أغسطس]) -> 6500 | K18: =SUM(tblالدخل[سبتمبر]) -> 4000 | L18: =SUM(tblالدخل[أكتوبر]) -> 4000 | M18: =SUM(tblالدخل[نوفمبر]) -> 9000 | N18: =SUM(tblالدخل[ديسمبر]) -> 4000 | O18: =SUM(tblالدخل[سنة]) -> 60825 | P18: =tblالدخل[[#Totals],[سنة]]/12 -> 5069
B21: المنزل
B22: الرهن/الإيجار | C22: 850 | D22: 850 | E22: 850 | F22: 850 | G22: 850 | H22: 850 | I22: 850 | J22: 850 | K22: 850 | L22: 850 | M22: 900 | N22: 900 | O22: =SUM(tblنفقةفئة1[[#This Row],[يناير]:[ديسمبر]]) -> 10300 | P22: =tblنفقةفئة1[[#This Row],[سنة]]/12 -> 858
B23: الكهرباء | C23: 200 | D23: 200 | E23: 175 | F23: 150 | G23: 150 | H23: 175 | I23: 225 | J23: 275 | K23: 200 | L23: 150 | M23: 150 | N23: 150 | O23: =SUM(tblنفقةفئة1[[#This Row],[يناير]:[ديسمبر]]) -> 2200 | P23: =tblنفقةفئة1[[#This Row],[سنة]]/12 -> 183
B24: الهاتف | C24: 50 | D24: 50 | E24: 100 | F24: 100 | G24: 50 | H24: 50 | I24: 100 | J24: 100 | K24: 50 | L24: 50 | M24: 50 | N24: 50 | O24: =SUM(tblنفقةفئة1[[#This Row],[يناير]:[ديسمبر]]) -> 800 | P24: =tblنفقةفئة1[[#This Row],[سنة]]/12 -> 67
B25: الكبل/القمر الصناعي | C25: 69 | D25: 69 | E25: 69 | F25: 69 | G25: 69 | H25: 69 | I25: 69 | J25: 69 | K25: 69 | L25: 69 | M25: 69 | N25: 69 | O25: =SUM(tblنفقةفئة1[[#This Row],[يناير]:[ديسمبر]]) -> 828 | P25: =tblنفقةفئة1[[#This Row],[سنة]]/12 -> 69
B26: الإنترنت | C26: 39 | D26: 39 | E26: 39 | F26: 39 | G26: 39 | H26: 39 | I26: 39 | J26: 39 | K26: 39 | L26: 39 | M26: 39 | N26: 39 | O26: =SUM(tblنفقةفئة1[[#This Row],[يناير]:[ديسمبر]]) -> 468 | P26: =tblنفقةفئة1[[#This Row],[سنة]]/12 -> 39
B27: =UPPER("الإجمالي " & B21) -> الإجمالي المنزل | C27: =SUM(tblنفقةفئة1[يناير]) -> 1208 | D27: =SUM(tblنفقةفئة1[فبراير]) -> 1208 | E27: =SUM(tblنفقةفئة1[مارس]) -> 1233 | F27: =SUM(tblنفقةفئة1[أبريل]) -> 1208 | G27: =SUM(tblنفقةفئة1[مايو]) -> 1158 | H27: =SUM(tblنفقةفئة1[يونيو]) -> 1183 | I27: =SUM(tblنفقةفئة1[يوليو]) -> 1283 | J27: =SUM(tblنفقةفئة1[أغسطس]) -> 1333 | K27: =SUM(tblنفقةفئة1[سبتمبر]) -> 1208 | L27: =SUM(tblنفقةفئة1[أكتوبر]) -> 1158 | M27: =SUM(tblنفقةفئة1[نوفمبر]) -> 1208 | N27: =SUM(tblنفقةفئة1[ديسمبر]) -> 1208 | O27: =SUM(tblنفقةفئة1[سنة]) -> 14596 | P27: =tblنفقةفئة1[[#Totals],[سنة]]/12 -> 1216
B30: الحياة اليومية
B31: البقالة | C31: 345 | D31: 250 | E31: 200 | F31: 400 | G31: 350 | H31: 250 | I31: 400 | J31: 350 | K31: 250 | L31: 400 | M31: 350 | N31: 250 | O31: =SUM(tblنفقةفئة2[[#This Row],[يناير]:[ديسمبر]]) -> 3795 | P31: =tblنفقةفئة2[[#This Row],[سنة]]/12 -> 316
B32: الملابس | C32: 300 | F32: 300 | I32: 300 | L32: 300 | O32: =SUM(tblنفقةفئة2[[#This Row],[يناير]:[ديسمبر]]) -> 1200 | P32: =tblنفقةفئة2[[#This Row],[سنة]]/12 -> 100
B33: العشاء/تناول الطعام خارج المنزل | C33: 125 | D33: 125 | E33: 300 | F33: 125 | G33: 125 | H33: 200 | I33: 125 | J33: 125 | K33: 125 | L33: 125 | M33: 125 | N33: 125 | O33: =SUM(tblنفقةفئة2[[#This Row],[يناير]:[ديسمبر]]) -> 1750 | P33: =tblنفقةفئة2[[#This Row],[سنة]]/12 -> 146
B34: الصالون/الحلاق | C34: 25 | E34: 50 | G34: 25 | I34: 50 | K34: 25 | M34: 100 | O34: =SUM(tblنفقةفئة2[[#This Row],[يناير]:[ديسمبر]]) -> 275 | P34: =tblنفقةفئة2[[#This Row],[سنة]]/12 -> 23
B35: غير ذلك | O35: =SUM(tblنفقةفئة2[[#This Row],[يناير]:[ديسمبر]]) -> 0 | P35: =tblنفقةفئة2[[#This Row],[سنة]]/12 -> 0
B36: =UPPER("الإجمالي " & B30) -> الإجمالي الحياة اليومية | C36: =SUM(tblنفقةفئة2[يناير]) -> 795 | D36: =SUM(tblنفقةفئة2[فبراير]) -> 375 | E36: =SUM(tblنفقةفئة2[مارس]) -> 550 | F36: =SUM(tblنفقةفئة2[أبريل]) -> 825 | G36: =SUM(tblنفقةفئة2[مايو]) -> 500 | H36: =SUM(tblنفقةفئة2[يونيو]) -> 450 | I36: =SUM(tblنفقةفئة2[يوليو]) -> 875 | J36: =SUM(tblنفقةفئة2[أغسطس]) -> 475 | K36: =SUM(tblنفقةفئة2[سبتمبر]) -> 400 | L36: =SUM(tblنفقةفئة2[أكتوبر]) -> 825 | M36: =SUM(tblنفقةفئة2[نوفمبر]) -> 575 | N36: =SUM(tblنفقةفئة2[ديسمبر]) -> 375 | O36: =SUM(tblنفقةفئة2[سنة]) -> 7020 | P36: =tblنفقةفئة2[[#Totals],[سنة]]/12 -> 585
B39: الأولاد
B40: تجهيزات المدرسة | C40: 123 | E40: 100 | J40: 345 | O40: =SUM(tblنفقةفئة3[[#This Row],[يناير]:[ديسمبر]]) -> 568 | P40: =tblنفقةفئة3[[#This Row],[سنة]]/12 -> 47
B41: الملابس | D41: 100 | G41: 100 | K41: 100 | N41: 100 | O41: =SUM(tblنفقةفئة3[[#This Row],[يناير]:[ديسمبر]]) -> 400 | P41: =tblنفقةفئة3[[#This Row],[سنة]]/12 -> 33
B42: غداء المدرسة | C42: 50 | D42: 50 | E42: 50 | F42: 50 | G42: 50 | H42: 50 | K42: 50 | L42: 50 | M42: 50 | N42: 50 | O42: =SUM(tblنفقةفئة3[[#This Row],[يناير]:[ديسمبر]]) -> 500 | P42: =tblنفقةفئة3[[#This Row],[سنة]]/12 -> 42
B43: الطبابة | C43: 200 | D43: 200 | E43: 200 | F43: 200 | G43: 200 | H43: 200 | I43: 200 | J43: 200 | K43: 200 | L43: 200 | M43: 200 | N43: 200 | O43: =SUM(tblنفقةفئة3[[#This Row],[يناير]:[ديسمبر]]) -> 2400 | P43: =tblنفقةفئة3[[#This Row],[سنة]]/12 -> 200
B44: غير ذلك | C44: 2000 | D44: 150 | H44: 200 | L44: 100 | O44: =SUM(tblنفقةفئة3[[#This Row],[يناير]:[ديسمبر]]) -> 2450 | P44: =tblنفقةفئة3[[#This Row],[سنة]]/12 -> 204
B45: =UPPER("الإجمالي " & B39) -> الإجمالي الأولاد | C45: =SUM(tblنفقةفئة3[يناير]) -> 2373 | D45: =SUM(tblنفقةفئة3[فبراير]) -> 500 | E45: =SUM(tblنفقةفئة3[مارس]) -> 350 | F45: =SUM(tblنفقةفئة3[أبريل]) -> 250 | G45: =SUM(tblنفقةفئة3[مايو]) -> 350 | H45: =SUM(tblنفقةفئة3[يونيو]) -> 450 | I45: =SUM(tblنفقةفئة3[يوليو]) -> 200 | J45: =SUM(tblنفقةفئة3[أغسطس]) -> 545 | K45: =SUM(tblنفقةفئة3[سبتمبر]) -> 350 | L45: =SUM(tblنفقةفئة3[أكتوبر]) -> 350 | M45: =SUM(tblنفقةفئة3[نوفمبر]) -> 250 | N45: =SUM(tblنفقةفئة3[ديسمبر]) -> 350 | O45: =SUM(tblنفقةفئة3[سنة]) -> 6318 | P45: =tblنفقةفئة3[[#Totals],[سنة]]/12 -> 527
B48: المواصلات
B49: مدفوعات السيارات | C49: 600 | D49: 600 | E49: 600 | F49: 600 | G49: 600 | H49: 600 | I49: 600 | J49: 600 | K49: 600 | L49: 600 | M49: 600 | N49: 600 | O49: =SUM(tblنفقةفئة4[[#This Row],[يناير]:[ديسمبر]]) -> 7200 | P49: =tblنفقةفئة4[[#This Row],[سنة]]/12 -> 600
B50: الوقود | C50: 325 | D50: 325 | E50: 325 | F50: 325 | G50: 325 | H50: 500 | I50: 500 | J50: 500 | K50: 325 | L50: 325 | M50: 325 | N50: 325 | O50: =SUM(tblنفقةفئة4[[#This Row],[يناير]:[ديسمبر]]) -> 4425 | P50: =tblنفقةفئة4[[#This Row],[سنة]]/12 -> 369
B51: الإصلاحات | D51: 100 | F51: 100 | H51: 100 | J51: 100 | L51: 100 | O51: =SUM(tblنفقةفئة4[[#This Row],[يناير]:[ديسمبر]]) -> 500 | P51: =tblنفقةفئة4[[#This Row],[سنة]]/12 -> 42
B52: التسجيل/الترخيص | C52: 185 | K52: 225 | O52: =SUM(tblنفقةفئة4[[#This Row],[يناير]:[ديسمبر]]) -> 410 | P52: =tblنفقةفئة4[[#This Row],[سنة]]/12 -> 34
B53: غير ذلك | G53: 400 | O53: =SUM(tblنفقةفئة4[[#This Row],[يناير]:[ديسمبر]]) -> 400 | P53: =tblنفقةفئة4[[#This Row],[سنة]]/12 -> 33
B54: =UPPER("الإجمالي " & B48) -> الإجمالي المواصلات | C54: =SUM(tblنفقةفئة4[يناير]) -> 1110 | D54: =SUM(tblنفقةفئة4[فبراير]) -> 1025 | E54: =SUM(tblنفقةفئة4[مارس]) -> 925 | F54: =SUM(tblنفقةفئة4[أبريل]) -> 1025 | G54: =SUM(tblنفقةفئة4[مايو]) -> 1325 | H54: =SUM(tblنفقةفئة4[يونيو]) -> 1200 | I54: =SUM(tblنفقةفئة4[يوليو]) -> 1100 | J54: =SUM(tblنفقةفئة4[أغسطس]) -> 1200 | K54: =SUM(tblنفقةفئة4[سبتمبر]) -> 1150 | L54: =SUM(tblنفقةفئة4[أكتوبر]) -> 1025 | M54: =SUM(tblنفقةفئة4[نوفمبر]) -> 925 | N54: =SUM(tblنفقةفئة4[ديسمبر]) -> 925 | O54: =SUM(tblنفقةفئة4[سنة]) -> 12935 | P54: =tblنفقةفئة4[[#Totals],[سنة]]/12 -> 1078
B57: الصحة
B58: الطبيب/طبيب الأسنان | D58: 35 | G58: 35 | H58: 35 | I58: 35 | L58: 35 | O58: =SUM(tblنفقةفئة5[[#This Row],[يناير]:[ديسمبر]]) -> 175 | P58: =tblنفقةفئة5[[#This Row],[سنة]]/12 -> 15
B59: الأدوية/العقاقير | C59: 25 | D59: 25 | E59: 25 | F59: 25 | G59: 25 | H59: 25 | I59: 25 | J59: 25 | K59: 25 | L59: 25 | M59: 25 | N59: 25 | O59: =SUM(tblنفقةفئة5[[#This Row],[يناير]:[ديسمبر]]) -> 300 | P59: =tblنفقةفئة5[[#This Row],[سنة]]/12 -> 25
B60: غير ذلك | E60: 150 | K60: 150 | O60: =SUM(tblنفقةفئة5[[#This Row],[يناير]:[ديسمبر]]) -> 300 | P60: =tblنفقةفئة5[[#This Row],[سنة]]/12 -> 25
B61: =UPPER("الإجمالي " & B57) -> الإجمالي الصحة | C61: =SUM(tblنفقةفئة5[يناير]) -> 25 | D61: =SUM(tblنفقةفئة5[فبراير]) -> 60 | E61: =SUM(tblنفقةفئة5[مارس]) -> 175 | F61: =SUM(tblنفقةفئة5[أبريل]) -> 25 | G61: =SUM(tblنفقةفئة5[مايو]) -> 60 | H61: =SUM(tblنفقةفئة5[يونيو]) -> 60 | I61: =SUM(tblنفقةفئة5[يوليو]) -> 60 | J61: =SUM(tblنفقةفئة5[أغسطس]) -> 25 | K61: =SUM(tblنفقةفئة5[سبتمبر]) -> 175 | L61: =SUM(tblنفقةفئة5[أكتوبر]) -> 60 | M61: =SUM(tblنفقةفئة5[نوفمبر]) -> 25 | N61: =SUM(tblنفقةفئة5[ديسمبر]) -> 25 | O61: =SUM(tblنفقةفئة5[سنة]) -> 775 | P61: =tblنفقةفئة5[[#Totals],[سنة]]/12 -> 65
B64: التأمين
B65: السيارة | C65: 150 | D65: 150 | E65: 150 | F65: 150 | G65: 150 | H65: 150 | I65: 150 | J65: 150 | K65: 150 | L65: 150 | M65: 150 | N65: 150 | O65: =SUM(tblنفقةفئة6[[#This Row],[يناير]:[ديسمبر]]) -> 1800 | P65: =tblنفقةفئة6[[#This Row],[سنة]]/12 -> 150
B66: الصحة | C66: 675 | D66: 675 | E66: 675 | F66: 675 | G66: 675 | H66: 675 | I66: 675 | J66: 675 | K66: 675 | L66: 675 | M66: 675 | N66: 675 | O66: =SUM(tblنفقةفئة6[[#This Row],[يناير]:[ديسمبر]]) -> 8100 | P66: =tblنفقةفئة6[[#This Row],[سنة]]/12 -> 675
B67: الحياة | C67: 150 | D67: 150 | E67: 150 | F67: 150 | G67: 150 | H67: 150 | I67: 150 | J67: 150 | K67: 150 | L67: 150 | M67: 150 | N67: 150 | O67: =SUM(tblنفقةفئة6[[#This Row],[يناير]:[ديسمبر]]) -> 1800 | P67: =tblنفقةفئة6[[#This Row],[سنة]]/12 -> 150
B68: =UPPER("الإجمالي " & B64) -> الإجمالي التأمين | C68: =SUM(tblنفقةفئة6[يناير]) -> 975 | D68: =SUM(tblنفقةفئة6[فبراير]) -> 975 | E68: =SUM(tblنفقةفئة6[مارس]) -> 975 | F68: =SUM(tblنفقةفئة6[أبريل]) -> 975 | G68: =SUM(tblنفقةفئة6[مايو]) -> 975 | H68: =SUM(tblنفقةفئة6[يونيو]) -> 975 | I68: =SUM(tblنفقةفئة6[يوليو]) -> 975 | J68: =SUM(tblنفقةفئة6[أغسطس]) -> 975 | K68: =SUM(tblنفقةفئة6[سبتمبر]) -> 975 | L68: =SUM(tblنفقةفئة6[أكتوبر]) -> 975 | M68: =SUM(tblنفقةفئة6[نوفمبر]) -> 975 | N68: =SUM(tblنفقةفئة6[ديسمبر]) -> 975 | O68: =SUM(tblنفقةفئة6[سنة]) -> 11700 | P68: =tblنفقةفئة6[[#Totals],[سنة]]/12 -> 975
B71: التعليم
B72: الأقساط | E72: 400 | K72: 400 | O72: =SUM(tblنفقةفئة7[[#This Row],[يناير]:[ديسمبر]]) -> 800 | P72: =tblنفقةفئة7[[#This Row],[سنة]]/12 -> 67
B73: الكتب | E73: 225 | K73: 225 | O73: =SUM(tblنفقةفئة7[[#This Row],[يناير]:[ديسمبر]]) -> 450 | P73: =tblنفقةفئة7[[#This Row],[سنة]]/12 -> 38
B74: غير ذلك | O74: =SUM(tblنفقةفئة7[[#This Row],[يناير]:[ديسمبر]]) -> 0 | P74: =tblنفقةفئة7[[#This Row],[سنة]]/12 -> 0
B75: =UPPER("الإجمالي " & B71) -> الإجمالي التعليم | C75: =SUM(tblنفقةفئة7[يناير]) -> 0 | D75: =SUM(tblنفقةفئة7[فبراير]) -> 0 | E75: =SUM(tblنفقةفئة7[مارس]) -> 625 | F75: =SUM(tblنفقةفئة7[أبريل]) -> 0 | G75: =SUM(tblنفقةفئة7[مايو]) -> 0 | H75: =SUM(tblنفقةفئة7[يونيو]) -> 0 | I75: =SUM(tblنفقةفئة7[يوليو]) -> 0 | J75: =SUM(tblنفقةفئة7[أغسطس]) -> 0 | K75: =SUM(tblنفقةفئة7[سبتمبر]) -> 625 | L75: =SUM(tblنفقةفئة7[أكتوبر]) -> 0 | M75: =SUM(tblنفقةفئة7[نوفمبر]) -> 0 | N75: =SUM(tblنفقةفئة7[ديسمبر]) -> 0 | O75: =SUM(tblنفقةفئة7[سنة]) -> 1250 | P75: =tblنفقةفئة7[[#Totals],[سنة]]/12 -> 104
B78: العمل الخيري
B79: الهدايا الممنوحة | D79: 100 | H79: 100 | L79: 100 | O79: =SUM(tblنفقةفئة8[[#This Row],[يناير]:[ديسمبر]]) -> 300 | P79: =tblنفقةفئة8[[#This Row],[سنة]]/12 -> 25
B80: التبرعات الخيرية | E80: 100 | G80: 100 | I80: 100 | K80: 100 | M80: 100 | O80: =SUM(tblنفقةفئة8[[#This Row],[يناير]:[ديسمبر]]) -> 500 | P80: =tblنفقةفئة8[[#This Row],[سنة]]/12 -> 42
B81: غير ذلك | F81: 100 | J81: 100 | N81: 100 | O81: =SUM(tblنفقةفئة8[[#This Row],[يناير]:[ديسمبر]]) -> 300 | P81: =tblنفقةفئة8[[#This Row],[سنة]]/12 -> 25
B82: =UPPER("الإجمالي " & B78) -> الإجمالي العمل الخيري | C82: =SUM(tblنفقةفئة8[يناير]) -> 0 | D82: =SUM(tblنفقةفئة8[فبراير]) -> 100 | E82: =SUM(tblنفقةفئة8[مارس]) -> 100 | F82: =SUM(tblنفقةفئة8[أبريل]) -> 100 | G82: =SUM(tblنفقةفئة8[مايو]) -> 100 | H82: =SUM(tblنفقةفئة8[يونيو]) -> 100 | I82: =SUM(tblنفقةفئة8[يوليو]) -> 100 | J82: =SUM(tblنفقةفئة8[أغسطس]) -> 100 | K82: =SUM(tblنفقةفئة8[سبتمبر]) -> 100 | L82: =SUM(tblنفقةفئة8[أكتوبر]) -> 100 | M82: =SUM(tblنفقةفئة8[نوفمبر]) -> 100 | N82: =SUM(tblنفقةفئة8[ديسمبر]) -> 100 | O82: =SUM(tblنفقةفئة8[سنة]) -> 1100 | P82: =tblنفقةفئة8[[#Totals],[سنة]]/12 -> 92
B85: المدخرات
B86: صندوق الطوارئ | C86: 100 | D86: 100 | E86: 100 | F86: 100 | G86: 100 | K86: 100 | L86: 100 | M86: 100 | N86: 100 | O86: =SUM(tblنفقةفئة9[[#This Row],[يناير]:[ديسمبر]]) -> 900 | P86: =tblنفقةفئة9[[#This Row],[سنة]]/12 -> 75
B87: التقاعد (خطط التقاعد) | C87: 500 | D87: 500 | E87: 500 | F87: 500 | G87: 500 | H87: 500 | I87: 500 | J87: 500 | K87: 500 | L87: 500 | M87: 500 | N87: 500 | O87: =SUM(tblنفقةفئة9[[#This Row],[يناير]:[ديسمبر]]) -> 6000 | P87: =tblنفقةفئة9[[#This Row],[سنة]]/12 -> 500
B88: التحويل إلى الادخار | C88: 200 | D88: 200 | E88: 200 | F88: 200 | G88: 200 | K88: 200 | L88: 200 | M88: 200 | N88: 200 | O88: =SUM(tblنفقةفئة9[[#This Row],[يناير]:[ديسمبر]]) -> 1800 | P88: =tblنفقةفئة9[[#This Row],[سنة]]/12 -> 150
B89: =UPPER("الإجمالي " & B85) -> الإجمالي المدخرات | C89: =SUM(tblنفقةفئة9[يناير]) -> 800 | D89: =SUM(tblنفقةفئة9[فبراير]) -> 800 | E89: =SUM(tblنفقةفئة9[مارس]) -> 800 | F89: =SUM(tblنفقةفئة9[أبريل]) -> 800 | G89: =SUM(tblنفقةفئة9[مايو]) -> 800 | H89: =SUM(tblنفقةفئة9[يونيو]) -> 500 | I89: =SUM(tblنفقةفئة9[يوليو]) -> 500 | J89: =SUM(tblنفقةفئة9[أغسطس]) -> 500 | K89: =SUM(tblنفقةفئة9[سبتمبر]) -> 800 | L89: =SUM(tblنفقةفئة9[أكتوبر]) -> 800 | M89: =SUM(tblنفقةفئة9[نوفمبر]) -> 800 | N89: =SUM(tblنفقةفئة9[ديسمبر]) -> 800 | O89: =SUM(tblنفقةفئة9[سنة]) -> 8700 | P89: =tblنفقةفئة9[[#Totals],[سنة]]/12 -> 725
B92: الالتزامات
B93: بطاقة الائتمان رقم 1 | C93: 145 | D93: 145 | E93: 145 | F93: 145 | G93: 145 | H93: 145 | I93: 145 | J93: 145 | K93: 145 | L93: 145 | M93: 145 | N93: 145 | O93: =SUM(tblنفقةفئة10[[#This Row],[يناير]:[ديسمبر]]) -> 1740 | P93: =tblنفقةفئة10[[#This Row],[سنة]]/12 -> 145
B94: الضرائب الفدرالية | C94: 450 | F94: 450 | I94: 450 | L94: 450 | O94: =SUM(tblنفقةفئة10[[#This Row],[يناير]:[ديسمبر]]) -> 1800 | P94: =tblنفقةفئة10[[#This Row],[سنة]]/12 -> 150
B95: قرض الطلاب | C95: 55 | D95: 55 | E95: 55 | F95: 55 | G95: 55 | H95: 55 | I95: 55 | J95: 55 | K95: 55 | L95: 55 | M95: 55 | N95: 55 | O95: =SUM(tblنفقةفئة10[[#This Row],[يناير]:[ديسمبر]]) -> 660 | P95: =tblنفقةفئة10[[#This Row],[سنة]]/12 -> 55
B96: =UPPER("الإجمالي " & B92) -> الإجمالي الالتزامات | C96: =SUM(tblنفقةفئة10[يناير]) -> 650 | D96: =SUM(tblنفقةفئة10[فبراير]) -> 200 | E96: =SUM(tblنفقةفئة10[مارس]) -> 200 | F96: =SUM(tblنفقةفئة10[أبريل]) -> 650 | G96: =SUM(tblنفقةفئة10[مايو]) -> 200 | H96: =SUM(tblنفقةفئة10[يونيو]) -> 200 | I96: =SUM(tblنفقةفئة10[يوليو]) -> 650 | J96: =SUM(tblنفقةفئة10[أغسطس]) -> 200 | K96: =SUM(tblنفقةفئة10[سبتمبر]) -> 200 | L96: =SUM(tblنفقةفئة10[أكتوبر]) -> 650 | M96: =SUM(tblنفقةفئة10[نوفمبر]) -> 200 | N96: =SUM(tblنفقةفئة10[ديسمبر]) -> 200 | O96: =SUM(tblنفقةفئة10[سنة]) -> 4200 | P96: =tblنفقةفئة10[[#Totals],[سنة]]/12 -> 350
O100: =SUM(tblنفقةفئة11[[#This Row],[يناير]:[ديسمبر]]) -> 0 | P100: =tblنفقةفئة11[[#This Row],[سنة]]/12 -> 0
O101: =SUM(tblنفقةفئة11[[#This Row],[يناير]:[ديسمبر]]) -> 0 | P101: =tblنفقةفئة11[[#This Row],[سنة]]/12 -> 0
O102: =SUM(tblنفقةفئة11[[#This Row],[يناير]:[ديسمبر]]) -> 0 | P102: =tblنفقةفئة11[[#This Row],[سنة]]/12 -> 0
B103: =UPPER("الإجمالي " & B99) -> الإجمالي | C103: =SUM(tblنفقةفئة11[يناير]) -> 0 | D103: =SUM(tblنفقةفئة11[فبراير]) -> 0 | E103: =SUM(tblنفقةفئة11[مارس]) -> 0 | F103: =SUM(tblنفقةفئة11[أبريل]) -> 0 | G103: =SUM(tblنفقةفئة11[مايو]) -> 0 | H103: =SUM(tblنفقةفئة11[يونيو]) -> 0 | I103: =SUM(tblنفقةفئة11[يوليو]) -> 0 | J103: =SUM(tblنفقةفئة11[أغسطس]) -> 0 | K103: =SUM(tblنفقةفئة11[سبتمبر]) -> 0 | L103: =SUM(tblنفقةفئة11[أكتوبر]) -> 0 | M103: =SUM(tblنفقةفئة11[نوفمبر]) -> 0 | N103: =SUM(tblنفقةفئة11[ديسمبر]) -> 0 | O103: =SUM(tblنفقةفئة11[سنة]) -> 0 | P103: =tblنفقةفئة11[[#Totals],[سنة]]/12 -> 0
O107: =SUM(tblنفقةفئة12[[#This Row],[يناير]:[ديسمبر]]) -> 0 | P107: =tblنفقةفئة12[[#This Row],[سنة]]/12 -> 0
O108: =SUM(tblنفقةفئة12[[#This Row],[يناير]:[ديسمبر]]) -> 0 | P108: =tblنفقةفئة12[[#This Row],[سنة]]/12 -> 0
O109: =SUM(tblنفقةفئة12[[#This Row],[يناير]:[ديسمبر]]) -> 0 | P109: =tblنفقةفئة12[[#This Row],[سنة]]/12 -> 0
B110: =UPPER("الإجمالي " & B106) -> الإجمالي | C110: =SUM(tblنفقةفئة12[يناير]) -> 0 | D110: =SUM(tblنفقةفئة12[فبراير]) -> 0 | E110: =SUM(tblنفقةفئة12[مارس]) -> 0 | F110: =SUM(tblنفقةفئة12[أبريل]) -> 0 | G110: =SUM(tblنفقةفئة12[مايو]) -> 0 | H110: =SUM(tblنفقةفئة12[يونيو]) -> 0 | I110: =SUM(tblنفقةفئة12[يوليو]) -> 0 | J110: =SUM(tblنفقةفئة12[أغسطس]) -> 0 | K110: =SUM(tblنفقةفئة12[سبتمبر]) -> 0 | L110: =SUM(tblنفقةفئة12[أكتوبر]) -> 0 | M110: =SUM(tblنفقةفئة12[نوفمبر]) -> 0 | N110: =SUM(tblنفقةفئة12[ديسمبر]) -> 0 | O110: =SUM(tblنفقةفئة12[سنة]) -> 0 | P110: =tblنفقةفئة12[[#Totals],[سنة]]/12 -> 0
O114: =SUM(tblنفقةفئة13[[#This Row],[يناير]:[ديسمبر]]) -> 0 | P114: =tblنفقةفئة13[[#This Row],[سنة]]/12 -> 0
O115: =SUM(tblنفقةفئة13[[#This Row],[يناير]:[ديسمبر]]) -> 0 | P115: =tblنفقةفئة13[[#This Row],[سنة]]/12 -> 0
O116: =SUM(tblنفقةفئة13[[#This Row],[يناير]:[ديسمبر]]) -> 0 | P116: =tblنفقةفئة13[[#This Row],[سنة]]/12 -> 0
B117: =UPPER("الإجمالي " & B113) -> الإجمالي | C117: =SUM(tblنفقةفئة13[يناير]) -> 0 | D117: =SUM(tblنفقةفئة13[فبراير]) -> 0 | E117: =SUM(tblنفقةفئة13[مارس]) -> 0 | F117: =SUM(tblنفقةفئة13[أبريل]) -> 0 | G117: =SUM(tblنفقةفئة13[مايو]) -> 0 | H117: =SUM(tblنفقةفئة13[يونيو]) -> 0 | I117: =SUM(tblنفقةفئة13[يوليو]) -> 0 | J117: =SUM(tblنفقةفئة13[أغسطس]) -> 0 | K117: =SUM(tblنفقةفئة13[سبتمبر]) -> 0 | L117: =SUM(tblنفقةفئة13[أكتوبر]) -> 0 | M117: =SUM(tblنفقةفئة13[نوفمبر]) -> 0 | N117: =SUM(tblنفقةفئة13[ديسمبر]) -> 0 | O117: =SUM(tblنفقةفئة13[سنة]) -> 0 | P117: =tblنفقةفئة13[[#Totals],[سنة]]/12 -> 0
O121: =SUM(tblنفقةفئة14[[#This Row],[يناير]:[ديسمبر]]) -> 0 | P121: =tblنفقةفئة14[[#This Row],[سنة]]/12 -> 0
O122: =SUM(tblنفقةفئة14[[#This Row],[يناير]:[ديسمبر]]) -> 0 | P122: =tblنفقةفئة14[[#This Row],[سنة]]/12 -> 0
O123: =SUM(tblنفقةفئة14[[#This Row],[يناير]:[ديسمبر]]) -> 0 | P123: =tblنفقةفئة14[[#This Row],[سنة]]/12 -> 0
B124: =UPPER("الإجمالي " & B120) -> الإجمالي | C124: =SUM(tblنفقةفئة14[يناير]) -> 0 | D124: =SUM(tblنفقةفئة14[فبراير]) -> 0 | E124: =SUM(tblنفقةفئة14[مارس]) -> 0 | F124: =SUM(tblنفقةفئة14[أبريل]) -> 0 | G124: =SUM(tblنفقةفئة14[مايو]) -> 0 | H124: =SUM(tblنفقةفئة14[يونيو]) -> 0 | I124: =SUM(tblنفقةفئة14[يوليو]) -> 0 | J124: =SUM(tblنفقةفئة14[أغسطس]) -> 0 | K124: =SUM(tblنفقةفئة14[سبتمبر]) -> 0 | L124: =SUM(tblنفقةفئة14[أكتوبر]) -> 0 | M124: =SUM(tblنفقةفئة14[نوفمبر]) -> 0 | N124: =SUM(tblنفقةفئة14[ديسمبر]) -> 0 | O124: =SUM(tblنفقةفئة14[سنة]) -> 0 | P124: =tblنفقةفئة14[[#Totals],[سنة]]/12 -> 0
O128: =SUM(tblنفقةفئة15[[#This Row],[يناير]:[ديسمبر]]) -> 0 | P128: =tblنفقةفئة15[[#This Row],[سنة]]/12 -> 0
O129: =SUM(tblنفقةفئة15[[#This Row],[يناير]:[ديسمبر]]) -> 0 | P129: =tblنفقةفئة15[[#This Row],[سنة]]/12 -> 0
O130: =SUM(tblنفقةفئة15[[#This Row],[يناير]:[ديسمبر]]) -> 0 | P130: =tblنفقةفئة15[[#This Row],[سنة]]/12 -> 0
B131: =UPPER("الإجمالي " & B127) -> الإجمالي | C131: =SUM(tblنفقةفئة15[يناير]) -> 0 | D131: =SUM(tblنفقةفئة15[فبراير]) -> 0 | E131: =SUM(tblنفقةفئة15[مارس]) -> 0 | F131: =SUM(tblنفقةفئة15[أبريل]) -> 0 | G131: =SUM(tblنفقةفئة15[مايو]) -> 0 | H131: =SUM(tblنفقةفئة15[يونيو]) -> 0 | I131: =SUM(tblنفقةفئة15[يوليو]) -> 0 | J131: =SUM(tblنفقةفئة15[أغسطس]) -> 0 | K131: =SUM(tblنفقةفئة15[سبتمبر]) -> 0 | L131: =SUM(tblنفقةفئة15[أكتوبر]) -> 0 | M131: =SUM(tblنفقةفئة15[نوفمبر]) -> 0 | N131: =SUM(tblنفقةفئة15[ديسمبر]) -> 0 | O131: =SUM(tblنفقةفئة15[سنة]) -> 0 | P131: =tblنفقةفئة15[[#Totals],[سنة]]/12 -> 0

Sheet الإعداد
B1: عائلة زكي 2012
B2: الدخل | D2: المصاريف
B3: الأجور والبقشيش
B4: الدخل من الفوائد | D4: المنزل | F4: المنزل | H4: الحياة اليومية | J4: الأولاد
B5: الأرباح | D5: الحياة اليومية | F5: الرهن/الإيجار | H5: البقالة | J5: الطبابة
B6: الهدايا المتلقاة | D6: الأولاد | F6: الكهرباء | H6: التجهيزات الشخصية | J6: الملابس
B7: المبالغ المستردة/التعويضات | D7: المواصلات | F7: الغاز/الزيت | H7: الملابس | J7: الأقساط المدرسية
B8: التحويل من الادخار | D8: الصحة | F8: المياه/الصرف/القمامة | H8: خدمات التنظيف | J8: غداء المدرسة
B9: غير ذلك | D9: التأمين | F9: الهاتف | H9: العشاء/تناول الطعام في الخارج | J9: التجهيزات المدرسية
D10: التعليم | F10: الكبل/القمر الصناعي | H10: التنظيف الجاف | J10: مجالسة الأطفال
D11: العمل الخيري | F11: الإنترنت | H11: الصالون/الحلاق | J11: الدمى/الألعاب
D12: المدخرات | F12: الأثاث/الأجهزة المنزلية | H12: غير ذلك | J12: غير ذلك
D13: الالتزامات | F13: المرج/الحديقة
D14: الترفيه | F14: المؤن المنزلية
D15: الحيوانات الأليفة | F15: الصيانة
D16: الاشتراكات | F16: التحسينات
D17: العطلة | F17: غير ذلك
D18: خيارات متنوعة
F20: المواصلات | H20: الصحة | J20: التأمين
F21: مدفعوعات السيارات | H21: الطبيب/طبيب الأسنان | J21: السيارة
F22: الوقود | H22: الأدوية/العقاقير | J22: الصحة
F23: أجرة الحافلة/سيارة الأجرة/القطار | H23: مستحقات النادي الصحي | J23: المنزل/الإيجار
F24: الإصلاحات | H24: الطوارئ | J24: الحياة
F25: التسجيل/الترخيص | H25: غير ذلك | J25: غير ذلك
F26: غير ذلك
F29: التعليم | H29: العمل الخيري | J29: المدخرات
F30: الأقساط | H30: الهدايا الممنوحة | J30: صندوق الطوارئ
F31: الكتب | H31: التبرعات الخيرية | J31: التحويل إلى الادخار
F32: دروس الموسيقى | H32: التبرعات الدينية | J32: التقاعد (خطط التقاعد)
F33: غير ذلك | H33: غير ذلك | J33: الاستثمارات
J34: الكلية
J35: غير ذلك
F38: الالتزامات | H38: الترفيه | J38: الحيوانات الأليفة
F39: قرض الطلاب | H39: ملفات الفيديو/أقراص الفيديو الرقمية | J39: الطعام
F40: قروض أخرى | H40: الموسيقى | J40: الطبابة
F41: بطاقة الائتمان رقم 1 | H41: الألعاب | J41: الألعاب/التجهزيات
F42: بطاقة الائتمان رقم 2 | H42: خدمات التأجير | J42: غير ذلك
F43: بطاقة الائتمان رقم 3 | H43: السينما/المسرح
F44: نفقة الزوجة/إعالة الأطفال | H44: الحفلات الموسيقية/المسرحيات
F45: الضرائب الفدرالية | H45: الكتب
F46: ضرائب الملكية | H46: الهوايات
F47: الضرائب على صعيد الولاية/الصعيد المحلي | H47: الأفلام/الصور
F48: رسوم الصيانة | H48: الرياضات
F49: الرسوم القانونية | H49: الترفيه في الخارج
F50: غير ذلك | H50: الألعاب/الأدوات الذكية
H51: غير ذلك
F53: الاشتراكات | H53: العطلة | J53: خيارات متنوعة
F54: الصحيفة | H54: السفر | J54: رسوم المصرف
F55: المجلات | H55: المأوى | J55: الطوابع
F56: المستحقات | H56: الطعام | J56: غير ذلك
F57: عضوية النوادي | H57: إيجار السيارة
F58: غير ذلك | H58: الترفيه
H59: غير ذلك

Sheet بيانات المخطط (hidden)
B1: *** يجب أن تبقى هذه الورقة مخفية ***
B4: الفترة | C4: 3
C6: يناير | D6: فبراير | E6: مارس | F6: أبريل | G6: مايو | H6: يونيو | I6: يوليو | J6: أغسطس | K6: سبتمبر | L6: أكتوبر | M6: نوفمبر | N6: ديسمبر | O6: سنة | P6: المتوسط
B7: =LOWER(الميزانية!B127) ->  | C7: =SUM(tblنفقةفئة15[يناير]) -> 0 | D7: =SUM(tblنفقةفئة15[فبراير]) -> 0 | E7: =SUM(tblنفقةفئة15[مارس]) -> 0 | F7: =SUM(tblنفقةفئة15[أبريل]) -> 0 | G7: =SUM(tblنفقةفئة15[مايو]) -> 0 | H7: =SUM(tblنفقةفئة15[يونيو]) -> 0 | I7: =SUM(tblنفقةفئة15[يوليو]) -> 0 | J7: =SUM(tblنفقةفئة15[أغسطس]) -> 0 | K7: =SUM(tblنفقةفئة15[سبتمبر]) -> 0 | L7: =SUM(tblنفقةفئة15[أكتوبر]) -> 0 | M7: =SUM(tblنفقةفئة15[نوفمبر]) -> 0 | N7: =SUM(tblنفقةفئة15[ديسمبر]) -> 0 | O7: =SUM(tblنفقةفئة15[سنة]) -> 0 | P7: =SUM(tblنفقةفئة15[المتوسط]) -> 0
B8: =LOWER(الميزانية!B120) ->  | C8: =SUM(tblنفقةفئة14[يناير]) -> 0 | D8: =SUM(tblنفقةفئة14[فبراير]) -> 0 | E8: =SUM(tblنفقةفئة14[مارس]) -> 0 | F8: =SUM(tblنفقةفئة14[أبريل]) -> 0 | G8: =SUM(tblنفقةفئة14[مايو]) -> 0 | H8: =SUM(tblنفقةفئة14[يونيو]) -> 0 | I8: =SUM(tblنفقةفئة14[يوليو]) -> 0 | J8: =SUM(tblنفقةفئة14[أغسطس]) -> 0 | K8: =SUM(tblنفقةفئة14[سبتمبر]) -> 0 | L8: =SUM(tblنفقةفئة14[أكتوبر]) -> 0 | M8: =SUM(tblنفقةفئة14[نوفمبر]) -> 0 | N8: =SUM(tblنفقةفئة14[ديسمبر]) -> 0 | O8: =SUM(tblنفقةفئة14[سنة]) -> 0 | P8: =SUM(tblنفقةفئة14[المتوسط]) -> 0
B9: =LOWER(الميزانية!B113) ->  | C9: =SUM(tblنفقةفئة13[يناير]) -> 0 | D9: =SUM(tblنفقةفئة13[فبراير]) -> 0 | E9: =SUM(tblنفقةفئة13[مارس]) -> 0 | F9: =SUM(tblنفقةفئة13[أبريل]) -> 0 | G9: =SUM(tblنفقةفئة13[مايو]) -> 0 | H9: =SUM(tblنفقةفئة13[يونيو]) -> 0 | I9: =SUM(tblنفقةفئة13[يوليو]) -> 0 | J9: =SUM(tblنفقةفئة13[أغسطس]) -> 0 | K9: =SUM(tblنفقةفئة13[سبتمبر]) -> 0 | L9: =SUM(tblنفقةفئة13[أكتوبر]) -> 0 | M9: =SUM(tblنفقةفئة13[نوفمبر]) -> 0 | N9: =SUM(tblنفقةفئة13[ديسمبر]) -> 0 | O9: =SUM(tblنفقةفئة13[سنة]) -> 0 | P9: =SUM(tblنفقةفئة13[المتوسط]) -> 0
B10: =LOWER(الميزانية!B106) ->  | C10: =SUM(tblنفقةفئة12[يناير]) -> 0 | D10: =SUM(tblنفقةفئة12[فبراير]) -> 0 | E10: =SUM(tblنفقةفئة12[مارس]) -> 0 | F10: =SUM(tblنفقةفئة12[أبريل]) -> 0 | G10: =SUM(tblنفقةفئة12[مايو]) -> 0 | H10: =SUM(tblنفقةفئة12[يونيو]) -> 0 | I10: =SUM(tblنفقةفئة12[يوليو]) -> 0 | J10: =SUM(tblنفقةفئة12[أغسطس]) -> 0 | K10: =SUM(tblنفقةفئة12[سبتمبر]) -> 0 | L10: =SUM(tblنفقةفئة12[أكتوبر]) -> 0 | M10: =SUM(tblنفقةفئة12[نوفمبر]) -> 0 | N10: =SUM(tblنفقةفئة12[ديسمبر]) -> 0 | O10: =SUM(tblنفقةفئة12[سنة]) -> 0 | P10: =SUM(tblنفقةفئة12[المتوسط]) -> 0
B11: =LOWER(الميزانية!B99) ->  | C11: =SUM(tblنفقةفئة11[يناير]) -> 0 | D11: =SUM(tblنفقةفئة11[فبراير]) -> 0 | E11: =SUM(tblنفقةفئة11[مارس]) -> 0 | F11: =SUM(tblنفقةفئة11[أبريل]) -> 0 | G11: =SUM(tblنفقةفئة11[مايو]) -> 0 | H11: =SUM(tblنفقةفئة11[يونيو]) -> 0 | I11: =SUM(tblنفقةفئة11[يوليو]) -> 0 | J11: =SUM(tblنفقةفئة11[أغسطس]) -> 0 | K11: =SUM(tblنفقةفئة11[سبتمبر]) -> 0 | L11: =SUM(tblنفقةفئة11[أكتوبر]) -> 0 | M11: =SUM(tblنفقةفئة11[نوفمبر]) -> 0 | N11: =SUM(tblنفقةفئة11[ديسمبر]) -> 0 | O11: =SUM(tblنفقةفئة11[سنة]) -> 0 | P11: =SUM(tblنفقةفئة11[المتوسط]) -> 0
B12: =LOWER(الميزانية!B92) -> الالتزامات | C12: =SUM(tblنفقةفئة10[يناير]) -> 650 | D12: =SUM(tblنفقةفئة10[فبراير]) -> 200 | E12: =SUM(tblنفقةفئة10[مارس]) -> 200 | F12: =SUM(tblنفقةفئة10[أبريل]) -> 650 | G12: =SUM(tblنفقةفئة10[مايو]) -> 200 | H12: =SUM(tblنفقةفئة10[يونيو]) -> 200 | I12: =SUM(tblنفقةفئة10[يوليو]) -> 650 | J12: =SUM(tblنفقةفئة10[أغسطس]) -> 200 | K12: =SUM(tblنفقةفئة10[سبتمبر]) -> 200 | L12: =SUM(tblنفقةفئة10[أكتوبر]) -> 650 | M12: =SUM(tblنفقةفئة10[نوفمبر]) -> 200 | N12: =SUM(tblنفقةفئة10[ديسمبر]) -> 200 | O12: =SUM(tblنفقةفئة10[سنة]) -> 4,200 | P12: =SUM(tblنفقةفئة10[المتوسط]) -> 350
B13: =LOWER(الميزانية!B85) -> المدخرات | C13: =SUM(tblنفقةفئة9[يناير]) -> 800 | D13: =SUM(tblنفقةفئة9[فبراير]) -> 800 | E13: =SUM(tblنفقةفئة9[مارس]) -> 800 | F13: =SUM(tblنفقةفئة9[أبريل]) -> 800 | G13: =SUM(tblنفقةفئة9[مايو]) -> 800 | H13: =SUM(tblنفقةفئة9[يونيو]) -> 500 | I13: =SUM(tblنفقةفئة9[يوليو]) -> 500 | J13: =SUM(tblنفقةفئة9[أغسطس]) -> 500 | K13: =SUM(tblنفقةفئة9[سبتمبر]) -> 800 | L13: =SUM(tblنفقةفئة9[أكتوبر]) -> 800 | M13: =SUM(tblنفقةفئة9[نوفمبر]) -> 800 | N13: =SUM(tblنفقةفئة9[ديسمبر]) -> 800 | O13: =SUM(tblنفقةفئة9[سنة]) -> 8,700 | P13: =SUM(tblنفقةفئة9[المتوسط]) -> 725
B14: =LOWER(الميزانية!B78) -> العمل الخيري | C14: =SUM(tblنفقةفئة8[يناير]) -> 0 | D14: =SUM(tblنفقةفئة8[فبراير]) -> 100 | E14: =SUM(tblنفقةفئة8[مارس]) -> 100 | F14: =SUM(tblنفقةفئة8[أبريل]) -> 100 | G14: =SUM(tblنفقةفئة8[مايو]) -> 100 | H14: =SUM(tblنفقةفئة8[يونيو]) -> 100 | I14: =SUM(tblنفقةفئة8[يوليو]) -> 100 | J14: =SUM(tblنفقةفئة8[أغسطس]) -> 100 | K14: =SUM(tblنفقةفئة8[سبتمبر]) -> 100 | L14: =SUM(tblنفقةفئة8[أكتوبر]) -> 100 | M14: =SUM(tblنفقةفئة8[نوفمبر]) -> 100 | N14: =SUM(tblنفقةفئة8[ديسمبر]) -> 100 | O14: =SUM(tblنفقةفئة8[سنة]) -> 1,100 | P14: =SUM(tblنفقةفئة8[المتوسط]) -> 92
B15: =LOWER(الميزانية!B71) -> التعليم | C15: =SUM(tblنفقةفئة7[يناير]) -> 0 | D15: =SUM(tblنفقةفئة7[فبراير]) -> 0 | E15: =SUM(tblنفقةفئة7[مارس]) -> 625 | F15: =SUM(tblنفقةفئة7[أبريل]) -> 0 | G15: =SUM(tblنفقةفئة7[مايو]) -> 0 | H15: =SUM(tblنفقةفئة7[يونيو]) -> 0 | I15: =SUM(tblنفقةفئة7[يوليو]) -> 0 | J15: =SUM(tblنفقةفئة7[أغسطس]) -> 0 | K15: =SUM(tblنفقةفئة7[سبتمبر]) -> 625 | L15: =SUM(tblنفقةفئة7[أكتوبر]) -> 0 | M15: =SUM(tblنفقةفئة7[نوفمبر]) -> 0 | N15: =SUM(tblنفقةفئة7[ديسمبر]) -> 0 | O15: =SUM(tblنفقةفئة7[سنة]) -> 1,250 | P15: =SUM(tblنفقةفئة7[المتوسط]) -> 104
B16: =LOWER(الميزانية!B64) -> التأمين | C16: =SUM(tblنفقةفئة6[يناير]) -> 975 | D16: =SUM(tblنفقةفئة6[فبراير]) -> 975 | E16: =SUM(tblنفقةفئة6[مارس]) -> 975 | F16: =SUM(tblنفقةفئة6[أبريل]) -> 975 | G16: =SUM(tblنفقةفئة6[مايو]) -> 975 | H16: =SUM(tblنفقةفئة6[يونيو]) -> 975 | I16: =SUM(tblنفقةفئة6[يوليو]) -> 975 | J16: =SUM(tblنفقةفئة6[أغسطس]) -> 975 | K16: =SUM(tblنفقةفئة6[سبتمبر]) -> 975 | L16: =SUM(tblنفقةفئة6[أكتوبر]) -> 975 | M16: =SUM(tblنفقةفئة6[نوفمبر]) -> 975 | N16: =SUM(tblنفقةفئة6[ديسمبر]) -> 975 | O16: =SUM(tblنفقةفئة6[سنة]) -> 11,700 | P16: =SUM(tblنفقةفئة6[المتوسط]) -> 975
B17: =LOWER(الميزانية!B57) -> الصحة | C17: =SUM(tblنفقةفئة5[يناير]) -> 25 | D17: =SUM(tblنفقةفئة5[فبراير]) -> 60 | E17: =SUM(tblنفقةفئة5[مارس]) -> 175 | F17: =SUM(tblنفقةفئة5[أبريل]) -> 25 | G17: =SUM(tblنفقةفئة5[مايو]) -> 60 | H17: =SUM(tblنفقةفئة5[يونيو]) -> 60 | I17: =SUM(tblنفقةفئة5[يوليو]) -> 60 | J17: =SUM(tblنفقةفئة5[أغسطس]) -> 25 | K17: =SUM(tblنفقةفئة5[سبتمبر]) -> 175 | L17: =SUM(tblنفقةفئة5[أكتوبر]) -> 60 | M17: =SUM(tblنفقةفئة5[نوفمبر]) -> 25 | N17: =SUM(tblنفقةفئة5[ديسمبر]) -> 25 | O17: =SUM(tblنفقةفئة5[سنة]) -> 775 | P17: =SUM(tblنفقةفئة5[المتوسط]) -> 65
B18: =LOWER(الميزانية!B48) -> المواصلات | C18: =SUM(tblنفقةفئة4[يناير]) -> 1,110 | D18: =SUM(tblنفقةفئة4[فبراير]) -> 1,025 | E18: =SUM(tblنفقةفئة4[مارس]) -> 925 | F18: =SUM(tblنفقةفئة4[أبريل]) -> 1,025 | G18: =SUM(tblنفقةفئة4[مايو]) -> 1,325 | H18: =SUM(tblنفقةفئة4[يونيو]) -> 1,200 | I18: =SUM(tblنفقةفئة4[يوليو]) -> 1,100 | J18: =SUM(tblنفقةفئة4[أغسطس]) -> 1,200 | K18: =SUM(tblنفقةفئة4[سبتمبر]) -> 1,150 | L18: =SUM(tblنفقةفئة4[أكتوبر]) -> 1,025 | M18: =SUM(tblنفقةفئة4[نوفمبر]) -> 925 | N18: =SUM(tblنفقةفئة4[ديسمبر]) -> 925 | O18: =SUM(tblنفقةفئة4[سنة]) -> 12,935 | P18: =SUM(tblنفقةفئة4[المتوسط]) -> 1,078
B19: =LOWER(الميزانية!B39) -> الأولاد | C19: =SUM(tblنفقةفئة3[يناير]) -> 2,373 | D19: =SUM(tblنفقةفئة3[فبراير]) -> 500 | E19: =SUM(tblنفقةفئة3[مارس]) -> 350 | F19: =SUM(tblنفقةفئة3[أبريل]) -> 250 | G19: =SUM(tblنفقةفئة3[مايو]) -> 350 | H19: =SUM(tblنفقةفئة3[يونيو]) -> 450 | I19: =SUM(tblنفقةفئة3[يوليو]) -> 200 | J19: =SUM(tblنفقةفئة3[أغسطس]) -> 545 | K19: =SUM(tblنفقةفئة3[سبتمبر]) -> 350 | L19: =SUM(tblنفقةفئة3[أكتوبر]) -> 350 | M19: =SUM(tblنفقةفئة3[نوفمبر]) -> 250 | N19: =SUM(tblنفقةفئة3[ديسمبر]) -> 350 | O19: =SUM(tblنفقةفئة3[سنة]) -> 6,318 | P19: =SUM(tblنفقةفئة3[المتوسط]) -> 527
B20: =LOWER(الميزانية!B30) -> الحياة اليومية | C20: =SUM(tblنفقةفئة2[يناير]) -> 795 | D20: =SUM(tblنفقةفئة2[فبراير]) -> 375 | E20: =SUM(tblنفقةفئة2[مارس]) -> 550 | F20: =SUM(tblنفقةفئة2[أبريل]) -> 825 | G20: =SUM(tblنفقةفئة2[مايو]) -> 500 | H20: =SUM(tblنفقةفئة2[يونيو]) -> 450 | I20: =SUM(tblنفقةفئة2[يوليو]) -> 875 | J20: =SUM(tblنفقةفئة2[أغسطس]) -> 475 | K20: =SUM(tblنفقةفئة2[سبتمبر]) -> 400 | L20: =SUM(tblنفقةفئة2[أكتوبر]) -> 825 | M20: =SUM(tblنفقةفئة2[نوفمبر]) -> 575 | N20: =SUM(tblنفقةفئة2[ديسمبر]) -> 375 | O20: =SUM(tblنفقةفئة2[سنة]) -> 7,020 | P20: =SUM(tblنفقةفئة2[المتوسط]) -> 585
B21: =LOWER(الميزانية!B21) -> المنزل | C21: =SUM(tblنفقةفئة1[يناير]) -> 1,208 | D21: =SUM(tblنفقةفئة1[فبراير]) -> 1,208 | E21: =SUM(tblنفقةفئة1[مارس]) -> 1,233 | F21: =SUM(tblنفقةفئة1[أبريل]) -> 1,208 | G21: =SUM(tblنفقةفئة1[مايو]) -> 1,158 | H21: =SUM(tblنفقةفئة1[يونيو]) -> 1,183 | I21: =SUM(tblنفقةفئة1[يوليو]) -> 1,283 | J21: =SUM(tblنفقةفئة1[أغسطس]) -> 1,333 | K21: =SUM(tblنفقةفئة1[سبتمبر]) -> 1,208 | L21: =SUM(tblنفقةفئة1[أكتوبر]) -> 1,158 | M21: =SUM(tblنفقةفئة1[نوفمبر]) -> 1,208 | N21: =SUM(tblنفقةفئة1[ديسمبر]) -> 1,208 | O21: =SUM(tblنفقةفئة1[سنة]) -> 14,596 | P21: =SUM(tblنفقةفئة1[المتوسط]) -> 1,216
B26: التدفق النقدي التراكمي | C26: =SUM(الميزانية!$C$8:C$8) -> -3,714 | D26: =SUM(الميزانية!$C$8:D$8) -> 76 | E26: =SUM(الميزانية!$C$8:E$8) -> -1,857 | F26: =SUM(الميزانية!$C$8:F$8) -> -3,670 | G26: =SUM(الميزانية!$C$8:G$8) -> -138 | H26: =SUM(الميزانية!$C$8:H$8) -> -3,731 | I26: =SUM(الميزانية!$C$8:I$8) -> -7,974 | J26: =SUM(الميزانية!$C$8:J$8) -> -6,827 | K26: =SUM(الميزانية!$C$8:K$8) -> -8,810 | L26: =SUM(الميزانية!$C$8:L$8) -> -10,753 | M26: =SUM(الميزانية!$C$8:M$8) -> -6,811 | N26: =SUM(الميزانية!$C$8:N$8) -> -7,769 | O26: =SUM(الميزانية!$C$8:O$8) -> -15,538
B28: التدفق النقدي السنوي الإيجابي | C28: =IF(الميزانية!C$8<0,NA(),IF(فترة+2<>COLUMN(الميزانية!C$8),NA(),الميزانية!C$8)) ->  | D28: =IF(الميزانية!D$8<0,NA(),IF(فترة+2<>COLUMN(الميزانية!D$8),NA(),الميزانية!D$8)) ->  | E28: =IF(الميزانية!E$8<0,NA(),IF(فترة+2<>COLUMN(الميزانية!E$8),NA(),الميزانية!E$8)) ->  | F28: =IF(الميزانية!F$8<0,NA(),IF(فترة+2<>COLUMN(الميزانية!F$8),NA(),الميزانية!F$8)) ->  | G28: =IF(الميزانية!G$8<0,NA(),IF(فترة+2<>COLUMN(الميزانية!G$8),NA(),الميزانية!G$8)) ->  | H28: =IF(الميزانية!H$8<0,NA(),IF(فترة+2<>COLUMN(الميزانية!H$8),NA(),الميزانية!H$8)) ->  | I28: =IF(الميزانية!I$8<0,NA(),IF(فترة+2<>COLUMN(الميزانية!I$8),NA(),الميزانية!I$8)) ->  | J28: =IF(الميزانية!J$8<0,NA(),IF(فترة+2<>COLUMN(الميزانية!J$8),NA(),الميزانية!J$8)) ->  | K28: =IF(الميزانية!K$8<0,NA(),IF(فترة+2<>COLUMN(الميزانية!K$8),NA(),الميزانية!K$8)) ->  | L28: =IF(الميزانية!L$8<0,NA(),IF(فترة+2<>COLUMN(الميزانية!L$8),NA(),الميزانية!L$8)) ->  | M28: =IF(الميزانية!M$8<0,NA(),IF(فترة+2<>COLUMN(الميزانية!M$8),NA(),الميزانية!M$8)) ->  | N28: =IF(الميزانية!N$8<0,NA(),IF(فترة+2<>COLUMN(الميزانية!N$8),NA(),الميزانية!N$8)) ->  | O28: =IF(الميزانية!O$8<0,NA(),IF(فترة+2<>COLUMN(الميزانية!O$8),NA(),الميزانية!O$8)) -> 
B29: التدفق النقدي السنوي السلبي | C29: =IF(الميزانية!C$8>=0,NA(),IF(فترة+2<>COLUMN(الميزانية!C$8),NA(),الميزانية!C$8)) ->  | D29: =IF(الميزانية!D$8>=0,NA(),IF(فترة+2<>COLUMN(الميزانية!D$8),NA(),الميزانية!D$8)) ->  | E29: =IF(الميزانية!E$8>=0,NA(),IF(فترة+2<>COLUMN(الميزانية!E$8),NA(),الميزانية!E$8)) -> -1,933 | F29: =IF(الميزانية!F$8>=0,NA(),IF(فترة+2<>COLUMN(الميزانية!F$8),NA(),الميزانية!F$8)) ->  | G29: =IF(الميزانية!G$8>=0,NA(),IF(فترة+2<>COLUMN(الميزانية!G$8),NA(),الميزانية!G$8)) ->  | H29: =IF(الميزانية!H$8>=0,NA(),IF(فترة+2<>COLUMN(الميزانية!H$8),NA(),الميزانية!H$8)) ->  | I29: =IF(الميزانية!I$8>=0,NA(),IF(فترة+2<>COLUMN(الميزانية!I$8),NA(),الميزانية!I$8)) ->  | J29: =IF(الميزانية!J$8>=0,NA(),IF(فترة+2<>COLUMN(الميزانية!J$8),NA(),الميزانية!J$8)) ->  | K29: =IF(الميزانية!K$8>=0,NA(),IF(فترة+2<>COLUMN(الميزانية!K$8),NA(),الميزانية!K$8)) ->  | L29: =IF(الميزانية!L$8>=0,NA(),IF(فترة+2<>COLUMN(الميزانية!L$8),NA(),الميزانية!L$8)) ->  | M29: =IF(الميزانية!M$8>=0,NA(),IF(فترة+2<>COLUMN(الميزانية!M$8),NA(),الميزانية!M$8)) ->  | N29: =IF(الميزانية!N$8>=0,NA(),IF(فترة+2<>COLUMN(الميزانية!N$8),NA(),الميزانية!N$8)) ->  | O29: =IF(الميزانية!O$8>=0,NA(),IF(فترة+2<>COLUMN(الميزانية!O$8),NA(),الميزانية!O$8)) -> 
B37: =LOWER(عرضفترةطويلة) -> مارس
B38: =عرضفترةطويلة & " الدخل" -> مارس الدخل | C38: =INDEX(الميزانية!$C$6:$P$6,,فترة) -> 4,000ر.س.‏
B39: =عرضفترةطويلة & " المصاريف: " & TEXT(INDEX(الميزانية!$C$7:$P$7,,فترة),"$#,##0") -> مارس المصاريف: $5,933 | C39: =INDEX(الميزانية!$C$7:$P$7,,فترة) -> 5,933ر.س.‏
B40: =عرضفترةطويلة & " التدفق النقدي" -> مارس التدفق النقدي | C40: =ABS(INDEX(الميزانية!$C$8:$P$8,,فترة)) -> 1,933ر.س.‏ | D40: =REPT("-",INDEX(الميزانية!$C$8:$P$8,,فترة)<0) -> -
